Cogmind - Beta 13 @@@ ROGUE MODE // 2024.04.13 @ 23:25:09 Player: Rend Result: Self-destructed Performance ------------- Evolutions (2) 1000 Regions Visited (5) 1000 Robots Destroyed (48) 240 Value Destroyed (1330) 1330 Prototype IDs (23) 460 Alien Tech Used (0) 0 Bonus (300) 300 TOTAL SCORE: 4330 Bonus ------- Aligned with FarCom 300 Cogmind --------- Core Integrity 351/550 Matter 259/300 Energy 274/275 System Corruption 0% Temperature Warning (383) Movement Core (300) Ox5 Location -8/Materials Parts ------- > --- POWER (2) -------- Deuterium Engine > --- PROPULSION (2) --- (None) > --- UTILITY (4) ------ Small Storage Unit Improved Signal Interpreter Hacking Suite > --- WEAPON (3) ------- Medium Laser > --- INVENTORY (8) ---- Aluminum Leg Carbon-fiber Leg Improved Heat Sink Cooling System Improved Signal Interpreter Ion Cannon Gauss Rifle Peak State ------------ > --- POWER ------------ Light Nuclear Core Light Nuclear Core > --- PROPULSION ------- Aluminum Leg VSS Leg > --- UTILITY ---------- Heat Sink Small Storage Unit Improved Signal Interpreter Hacking Suite > --- WEAPON ----------- Medium Laser Particle Gun Ion Cannon > --- INVENTORY -------- Aluminum Leg Carbon-fiber Leg Improved Heat Sink Cooling System Improved Signal Interpreter Guided Plasma Cannon Gauss Rifle [Rating: 26] Favorites ----------- Power Ion Engine Engine Ion Engine Power Core Light Nuclear Core Propulsion Aluminum Leg Treads Light Treads Leg Aluminum Leg Utility Small Storage Unit Device Improved Heat Sink Storage Small Storage Unit Processor Signal Interpreter Hackware Hacking Suite Weapon Medium Laser Energy Gun Medium Laser Energy Cannon Ion Cannon Ballistic Gun Gauss Rifle Build | -11 -10 -10 -10 -9 -8 ------- Run | Yrd Mat Min Exi Min Mat Slots Evolved 4 | . . . . . 4 Power 1 | . . . . . 1 Propulsion . | . . . . . . Utility 2 | . . . . . 2 Weapon 1 | . . . . . 1 Parts Attached 40 | 6 9 4 1 . 20 Power 8 | 1 1 1 . . 5 Engine 5 | 1 1 1 . . 2 Core 3 | . . . . . 3 Reactor . | . . . . . . Propulsion 10 | 2 3 2 . . 3 Treads 2 | 2 . . . . . Leg 8 | . 3 2 . . 3 Wheel . | . . . . . . Hover . | . . . . . . Flight . | . . . . . . Utility 7 | 1 2 . . . 4 Device 2 | . . . . . 2 Storage 1 | 1 . . . . . Processor 3 | . 2 . . . 1 Hackware 1 | . . . . . 1 Protection . | . . . . . . Artifact . | . . . . . . Weapon 15 | 2 3 1 1 . 8 Energy Gun 11 | 2 3 . 1 . 5 Energy Cannon 3 | . . 1 . . 2 Ballistic Gun 1 | . . . . . 1 Ballistic Cannon . | . . . . . . Launcher . | . . . . . . Special Weapon . | . . . . . . Impact Weapon . | . . . . . . Slashing Weapon . | . . . . . . Piercing Weapon . | . . . . . . Special Melee Weapon . | . . . . . . Unidentified Prototypes . | . . . . . . Parts Lost 10 | . 1 . . . 9 Power 2 | . . . . . 2 Propulsion 2 | . . . . . 2 Utility 2 | . . . . . 2 Weapon 4 | . 1 . . . 3 Highest Loss Streak 7 | . 1 . . . 7 To Critical Strikes . | . . . . . . Average Slot Usage (%) 97 | . 97 100 100 100 94 Engine 12 | . 14 14 14 14 10 Core 2 | . . . . . 6 Treads 4 | . 16 . . . . Leg 19 | . 11 28 28 28 17 Device 2 | . . . . . 6 Storage 12 | . 14 14 14 14 9 Processor 11 | . 11 14 14 14 9 Hackware 2 | . . . . . 8 Energy Gun 19 | . 27 19 14 14 15 Energy Cannon 7 | . . 8 14 14 10 Naked Turns . | . . . . . . Heaviest Build 27 | 14 14 18 18 18 27 Greatest Support 40 | 40 40 22 22 22 22 Greatest Overweight (x) 2 | . . . . . 2 Average Overweight (x) . | . . . . . . Largest Inventory Capacity 8 | 8 8 8 8 8 8 Average Capacity 7 | 7 8 8 8 8 8 Most Carried 8 | 5 7 8 8 8 8 Average Carried 6 | 3 5 7 7 8 7 Final Capacity 8 | 8 8 8 8 8 8 Final Carried 8 | 4 7 8 8 8 7 Class Distribution -------------------- 71% | Mutant 20% | Scavenger-Skirmisher 6% | Skirmisher Dominant Class ---------------- Mutant | -10/Materials Mutant | -10/Mines Mutant | -10/Exiles Mutant | -9/Mines Scavenger-Skirmisher | -8/Materials Resources | -11 -10 -10 -10 -9 -8 ----------- Run | Yrd Mat Min Exi Min Mat Matter Collected 620 | 248 102 40 . 21 209 Remotely . | . . . . . . Salvage Created 1793 | . 485 360 . 37 911 Parts 79 | . 27 10 . 6 36 Haulers Intercepted . | . . . . . . Recyclers Shooed . | . . . . . . Parts Field Recycled . | . . . . . . Retrieved Matter . | . . . . . . Parts Self-Destructed . | . . . . . . Prevented . | . . . . . . Kills | -11 -10 -10 -10 -9 -8 ------- Run | Yrd Mat Min Exi Min Mat Combat Hostiles Destroyed 35 | . 9 8 . 3 15 Guns 19 | . 8 5 . 2 4 Cannons 7 | . . 3 . 1 3 AOE 5 | . . . . . 5 Classes Destroyed 8 | . 5 . . . 3 Worker 2 | . . . . . 2 Tunneler 1 | . 1 . . . . Recycler 6 | . 1 2 . . 3 Watcher 4 | . 3 . . . 1 Swarmer 11 | . 3 5 . 3 . Grunt 22 | . 6 3 . . 13 Sentry 1 | . . . . . 1 Hunter 1 | . . . . . 1 Best Kill Streak 7 | . 4 3 . 3 7 Combat Bots Only 6 | . 3 3 . 3 6 Max Kills in Single Turn 6 | . 1 2 . 1 6 Gunslinging . | . . . . . . Exploded 5 | . . . . . 5 Melee . | . . . . . . Uniques/NPCs Destroyed . | . . . . . . Combat | -11 -10 -10 -10 -9 -8 -------- Run | Yrd Mat Min Exi Min Mat Hostile Shots Fired 194 | . 51 41 . 16 86 Missed 39 | . 9 12 . 2 16 Damage Taken 2270 | . 531 304 . 110 1325 Core 406 | . 102 86 . 19 199 Absorbed by Shields . | . . . . . . Core Remaining (%) 58 | 100 . . . 17 . Volleys Fired 117 | . 39 28 . 6 44 Largest 3 | . 2 2 . 2 3 Hottest 175 | . 100 110 . 110 175 Shots Fired 245 | . 72 54 . 12 107 Gun 175 | . 72 34 . 6 63 Cannon 70 | . . 20 . 6 44 Launcher . | . . . . . . Special . | . . . . . . Kinetic 3 | . . . . . 3 Thermal 242 | . 72 54 . 12 104 Explosive . | . . . . . . Electromagnetic . | . . . . . . Robot Hit Streak 13 | . 9 11 . 2 13 Robot Miss Streak 6 | . 3 2 . 6 3 Penetration Max . | . . . . . . Secondary Targets . | . . . . . . Shots Hit Robots 152 | . 46 39 . 3 64 Core Hits 69 | . 22 14 . 3 30 Critical Kills 2 | . . . . . 2 Critical Parts Destroyed . | . . . . . . Critical Strikes 16 | . 5 2 . . 9 Burn 14 | . 5 2 . . 7 Meltdown 2 | . . . . . 2 Melee Attacks . | . . . . . . Impact . | . . . . . . Slashing . | . . . . . . Piercing . | . . . . . . Sneak Attacks . | . . . . . . Combat Hostiles . | . . . . . . Follow-up Attacks . | . . . . . . Damage Inflicted 3307 | . 617 656 . 49 1985 Guns 1672 | . 617 353 . 26 676 Cannons 828 | . . 303 . 23 502 Explosions 807 | . . . . . 807 Melee . | . . . . . . Ramming . | . . . . . . Kinetic 40 | . . . . . 40 Thermal 2460 | . 617 656 . 49 1138 Explosive 807 | . . . . . 807 Electromagnetic . | . . . . . . Impact . | . . . . . . Slashing . | . . . . . . Piercing . | . . . . . . Highest Corruption 1 | . 1 1 1 1 . Average Corruption 1 | . 1 1 1 1 . Corruption Purged . | . . . . . . Corruption Blocked . | . . . . . . Effects 10 | . 3 4 3 . . Message Errors 2 | . 1 1 . . . Matter Fused 2 | . . . 2 . . Energy Discharges 3 | . 2 . 1 . . Data Loss (minor) 1 | . . 1 . . . Data Loss (major) 1 | . . 1 . . . Weapon Failures 1 | . . 1 . . . Overload Shots . | . . . . . . Overflow Damage 35 | . . 3 . . 32 Projectiles 14 | . . 3 . . 11 Explosions 21 | . . . . . 21 Melee . | . . . . . . Knockbacks . | . . . . . . Impact . | . . . . . . Kinetic . | . . . . . . Secondary . | . . . . . . Self-Inflicted Damage 167 | . . . . . 167 Shots 2 | . . . . . 2 Rammed . | . . . . . . Targets Rammed . | . . . . . . Kicked . | . . . . . . Crushed . | . . . . . . Highest Temperature 538 | . 369 299 . 288 538 Average Temperature 172 | . 128 108 . 146 256 Received Heat Transfer 993 | . 321 96 . . 576 Effects 27 | . 1 2 . . 24 Shutdowns 12 | . 1 . . . 11 Energy Bleed 3 | . . 1 . . 2 Interference 3 | . . 1 . . 2 Matter Decay 1 | . . . . . 1 Short Circuit 5 | . . . . . 5 Damage (major) 3 | . . . . . 3 Siege Activations . | . . . . . . Robots Corrupted . | . . . . . . Combat Hostiles . | . . . . . . Parts Fried . | . . . . . . Impact Corruptions . | . . . . . . Robots Melted 5 | . 1 . . . 4 Combat Hostiles 4 | . 1 . . . 3 Parts Melted 18 | . 7 3 . . 8 Heat Transferred 7116 | . 2183 1665 . 111 3157 Parts Sabotaged . | . . . . . . Parts Stolen . | . . . . . . Parts Stripped . | . . . . . . Power Chain Reactions . | . . . . . . Alert | -11 -10 -10 -10 -9 -8 ------- Run | Yrd Mat Min Exi Min Mat Peak Influence 207 | . 207 174 . 73 204 Initial 30 | . . 30 . . 27 Average 67 | . 67 54 . 67 85 Maximum Alert Level 1 | . 1 . . . 1 Low Security (%) 99 | 100 99 100 . 100 99 Level 1 . | . . . . . . Level 2 . | . . . . . . Level 3 . | . . . . . . Level 4 . | . . . . . . Level 5 . | . . . . . . High Security . | . . . . . . Max Security . | . . . . . . Squads Dispatched 5 | . 2 1 . . 2 Investigation 2 | . 1 1 . . . Extermination . | . . . . . . Reinforcement 3 | . 1 . . . 2 Assault . | . . . . . . Garrison . | . . . . . . Intercept . | . . . . . . Searches Triggered . | . . . . . . Construction Impeded . | . . . . . . Haulers Reinforced . | . . . . . . Active Scanning Responses . | . . . . . . Cargo Convoy Interrupts . | . . . . . . Stealth | -11 -10 -10 -10 -9 -8 --------- Run | Yrd Mat Min Exi Min Mat Distress Signals 5 | . 3 . . . 2 Communications Jammed . | . . . . . . Distress Signals . | . . . . . . Times Spotted 48 | . 18 10 . 2 18 Peak Tracking Total 8 | . 5 3 . 2 8 Tactical Retreats 3 | . 1 1 . . 1 Traps | -11 -10 -10 -10 -9 -8 ------- Run | Yrd Mat Min Exi Min Mat Traps Triggered 2 | . 2 . . . . Indirectly . | . . . . . . Trap Hack Attempts . | . . . . . . Triggered . | . . . . . . Disarmed . | . . . . . . Reprogrammed . | . . . . . . Reused . | . . . . . . Traps Extracted . | . . . . . . Installed . | . . . . . . Triggered . | . . . . . . Machines | -11 -10 -10 -10 -9 -8 ---------- Run | Yrd Mat Min Exi Min Mat Machines Disabled 4 | . . . . . 4 Max in Single Turn 3 | . . . . . 3 Machines Repaired . | . . . . . . Machines Dismantled . | . . . . . . Machines Sabotaged . | . . . . . . Overloaded Fab Kills . | . . . . . . Hacking | -11 -10 -10 -10 -9 -8 --------- Run | Yrd Mat Min Exi Min Mat Machines Accessed 4 | . 1 1 1 . 1 Terminals 2 | . 1 . . . 1 Fabricators . | . . . . . . Repair Stations . | . . . . . . Recycling Units . | . . . . . . Scanalyzers . | . . . . . . Garrison Access . | . . . . . . Total Hacks 5 | . 1 1 1 . 2 Successful 5 | . 1 1 1 . 2 Failed . | . . . . . . Catastrophic . | . . . . . . Database Lockouts . | . . . . . . Manual 1 | . . . 1 . . Terminals 3 | . 1 . . . 2 Fabricators . | . . . . . . Repair Stations . | . . . . . . Recycling Units . | . . . . . . Scanalyzers . | . . . . . . Garrison Access . | . . . . . . Terminal Hacks 5 | . 1 1 1 . 2 Record 3 | . 1 . . . 2 Open Door 1 | . . 1 . . . Derelict Proto ID Bank 1 | . . . 1 . . Fabricator Hacks . | . . . . . . Repair Station Hacks . | . . . . . . Recycling Unit Hacks . | . . . . . . Scanalyzer . | . . . . . . Garrison Access Hacks . | . . . . . . Unauthorized Hacks . | . . . . . . Terminals . | . . . . . . Fabricators . | . . . . . . Repair Stations . | . . . . . . Recycling Units . | . . . . . . Scanalyzers . | . . . . . . Garrison Access . | . . . . . . Data Cores Recovered . | . . . . . . Used . | . . . . . . Hacking Detections 2 | . 1 . . . 1 Full Trace Events . | . . . . . . Feedback Events . | . . . . . . Feedback Blocked . | . . . . . . Robot Schematics Acquired . | . . . . . . Robots Built . | . . . . . . Authchips . | . . . . . . Time . | . . . . . . Total Robot Build Rating . | . . . . . . Part Schematics Acquired . | . . . . . . Parts Built . | . . . . . . Authchips . | . . . . . . Time . | . . . . . . Total Part Build Rating . | . . . . . . Parts Repaired . | . . . . . . Time . | . . . . . . Parts Recycled . | . . . . . . Recycled Matter . | . . . . . . Retrieved Matter . | . . . . . . Retrieved Components . | . . . . . . Parts Scanalyzed . | . . . . . . Part Schematics Acquired . | . . . . . . Parts Damaged . | . . . . . . Bothacking | -11 -10 -10 -10 -9 -8 ------------ Run | Yrd Mat Min Exi Min Mat Used RIF Installer . | . . . . . . Robots Hacked . | . . . . . . Non-combat . | . . . . . . Combat . | . . . . . . Robot Hacks Applied . | . . . . . . Relay Couplers Released . | . . . . . . Fabnet Peak Effective % . | . . . . . . Robots Rewired . | . . . . . . Allies Hacked . | . . . . . . Hacks Repelled . | . . . . . . Allies | -11 -10 -10 -10 -9 -8 -------- Run | Yrd Mat Min Exi Min Mat Total Allies . | . . . . . . Largest Group . | . . . . . . Highest-Rated Group . | . . . . . . Highest-Rated Ally . | . . . . . . Total Orders . | . . . . . . Ally Attacks . | . . . . . . Total Damage . | . . . . . . Kills . | . . . . . . Allies Corrupted . | . . . . . . Allies Melted . | . . . . . . Intel | -11 -10 -10 -10 -9 -8 ------- Run | Yrd Mat Min Exi Min Mat Robot Analysis Total . | . . . . . . Derelict Logs Recovered 1 | . . 1 . . . Drone Launches . | . . . . . . Drone Recoveries . | . . . . . . Exploration | -11 -10 -10 -10 -9 -8 ------------- Run | Yrd Mat Min Exi Min Mat Turns Passed 2725 | 86 797 632 243 98 869 Spaces Moved 1531 | 50 434 457 227 73 290 Core 8 | 8 . . . . . Treads 225 | 42 183 . . . . Legs 1298 | . 251 457 227 73 290 Wheels . | . . . . . . Hover . | . . . . . . Flight . | . . . . . . Fastest Speed 50 | 50 120 105 105 105 105 Average Speed 131 | 142 136 110 105 105 180 Slowest Speed 270 | 160 160 120 105 105 270 Overloaded Moves . | . . . . . . Propulsion Burnouts . | . . . . . . Robots Hopped . | . . . . . . Cave-ins Triggered . | . . . . . . Exploration Rate (%) 39 | 4 60 88 43 18 21 Regions Visited 5 Branch Regions 3 Pre-discovered Areas . | . . . . . . Known Exits Taken 4 | . 1 1 1 1 . Unknown Exits Taken 1 | 1 . . . . . Scrap Searched 1 | . . 1 . . . Spaces Dug . | . . . . . . Terrain Destroyed 54 | . . 4 . 3 47 Melee . | . . . . . . Projectile 12 | . . 4 . 3 5 AOE 42 | . . . . . 42 Terrain Rammed . | . . . . . . Walls Destroyed . | . . . . . . Machines Disabled . | . . . . . . Actions | -11 -10 -10 -10 -9 -8 --------- Run | Yrd Mat Min Exi Min Mat Total 2029 | 65 567 531 233 82 551 Wait 265 | . 67 32 . 4 162 Move 1526 | 49 433 456 226 72 290 Hop . | . . . . . . Pick Up 51 | 10 12 6 3 . 20 Fast Attach . | . . . . . . Attach 27 | 6 6 . . . 15 Detach 1 | . . . . . 1 Swap 13 | . 3 4 1 . 5 Drop 29 | . 7 5 3 . 14 Fire 117 | . 39 28 . 6 44 Melee . | . . . . . . Ram . | . . . . . . Kick . | . . . . . . Crush . | . . . . . . Escape Stasis . | . . . . . . Rewire . | . . . . . . Trap . | . . . . . . Miscellaneous . | . . . . . . Route ------- -11/Scrapyard -10/Materials (discovered 3 exits: *Mat x2 / *Min) -10/Mines (discovered 2 exits: *Mat / *Exi) -10/Exiles -9/Mines -8/Materials History --------- Turn | Location | Event 6 | -11/Scrapyard | Discovered new exit (range 16) 87 | -11/Scrapyard | Entered Materials 310 | -10/Materials | Build established: Mutant 377 | -10/Materials | Discovered new exit (range 16) 440 | -10/Materials | Identified exit to Materials 667 | -10/Materials | Discovered new exit (range 16) 684 | -10/Materials | Identified exit to Mines 767 | -10/Materials | Discovered exit to Materials (range 15) 884 | -10/Materials | Entered Mines 1018 | -10/Mines | Core integrity fell below 50% 1111 | -10/Mines | Met a Derelict shopkeep closing up shop 1185 | -10/Mines | Learned Materials garrison access intel 1498 | -10/Mines | Discovered exit to Materials (range 15) 1512 | -10/Mines | Deemed a non-threat by the Exiles lab entrance 1512 | -10/Mines | Discovered new exit (range 5) 1515 | -10/Mines | Identified exit to Exiles 1516 | -10/Mines | Entered Exiles 1543 | -10/Exiles | Met 8R-AWN 1561 | -10/Exiles | Met EX-HEX 1602 | -10/Exiles | Met EX-BIN 1613 | -10/Exiles | Aligned with FarCom system 1614 | -10/Exiles | Given EX-Vault access code 1640 | -10/Exiles | Opened EX-Vault 1646 | -10/Exiles | Found Gui. Plasma Cannon 1672 | -10/Exiles | Warned to stay clear of 0b10 Research branches 1744 | -10/Exiles | Discovered new exit (range 15) 1758 | -10/Exiles | Identified exit to Mines 1759 | -10/Exiles | Left Exiles lab with Gui. Plasma Cannon 1759 | -10/Exiles | Entered Mines 1772 | -9/Mines | Met a Derelict bent on vengeance 1775 | -9/Mines | Core integrity fell below 20% 1847 | -9/Mines | Discovered new exit (range 11) 1856 | -9/Mines | Identified exit to Materials 1857 | -9/Mines | Entered Materials 1857 | -8/Materials | Evolved 4 slots: Power x1, Utility x2, Weapon x1 1858 | -8/Materials | Loaded intel: 1 garrison access location 2726 | -8/Materials | Self-destructed Last Messages --------------- Destroyed Lgt. Nuclear Core. G-47 Trooper destroyed. VSS Leg destroyed. Critical hit (Burn: +37). Power failure, Deuterium Engine shutdown. Nuclear Reactor explodes. Destroyed Lgt. Nuclear Core. G-47 Trooper destroyed. K-01 Serf destroyed. G-47 Trooper destroyed. Terminal disabled. G-47 Trooper destroyed. Destroyed Broken Imp. Aluminum Leg. G-50 Soldier destroyed. [Achievement: Quick And Dirty] Gui. Plasma Cannon destroyed. Destroyed Gui. Plasma Cannon. Particle Gun destroyed. Destroyed Particle Gun. U-05 Engineer builds a Wall. Map ----- +----------------------------------------------------+ | ??????????????????????# # ? | | ??????????????????????# # =# | | ??????????????? ??????# ######## | | ???????????????# ?????# #??????? | | ???????????????# ????# #??????? | | ???????????????# ???# #????" ? | | ???????????????# #### #??""" # | | ???????????????# ^ # # | | ???????????????# + """ # | | ???????????????# # """ # | | ???????????????+ #??""" # | | ???????????????# #???? ? | | ???????????????# "" # ?????? | | ??????????###### T" *# ?????? | | ????????? "" # ?????? | | ????????? ] # ?????? | | ????????? a ###???? | | ????????????#### # #???? | | ???????????????# #= #???? | | ???????????????# # ! ##??? | | ????????????#### # %% #??? | | ??????????? = #??? | | ??????????? % = #??? | | ???????????? l % #???? | | ?????????????????# #???? | | ???????????# = @ #???? | | ???????????# # % *% ##???? | | ??????????????????# #????? | | ??????????????????### # ###????? | | ????????????????????#######??????? | | ?????????????????????????????????? | | ?????????????????????????????????? | | ???????"""???????????????????????? | | ????????G"???????????????????????? | | ???????"""???????????????????????? | | ?????????????????????????????????? | | ?????????????????????????????????? | | ?????????????????????????????????? | | ?????????????????????????????????? | | ?????????????????????????????????? | | ?????????????????????????????????? | | ?????????????????????????????????? | | ?????????????????????????????????? | | ?????????????????????????????????? | | ?????????????????????????????????? | | ?????????????????????????????????? | | ?????????????????????????????????? | | ?????????????????????????????????? | | ?????????????????????????????????? | | ?????????????????????????????????? | +----------------------------------------------------+ Best States ------------- Heat Dissipation 45 Energy Generation 23 Energy Capacity 335 Matter Stores 300 Matter Capacity 300 Sight Range 16 Terrain Scan Density 10 Evasion (%) 55 Targeting Accuracy 5 Recoil Reduction 2 Offensive Hacking 10 Item Schematics ----------------- None Robot Schematics ------------------ None Fabricated ------------ Nothing Alien Tech Used ----------------- None Achievements -------------- Quick And Dirty Challenges ------------ None Game ------ Seed StorageFieldArray Manual? 0 Play Time 00:30:26 Cumulative 8.0 hours Start 2024.04.13 @ 17:51:06 End 2024.04.13 @ 23:25:09 Sessions 3 Manual Loads 0 Difficulty Rogue Special Mode None Game No. 7 Rogue 7 Adventurer 0 Explorer 0 Win Type - Total 0 Types 0/0/0/0/0/0/0/0/0 Lore% 12 Gallery% 12 Achievement% 15 Wizard Run 0 Options --------- Layout 1 ASCII 0 Keyboard 0 Movement Mouse Keybinds 0 Fullscreen 1 Font 24/Smallcaps Map View 50x35 Zoom Use 0% Tactical HUD 0 Map Filters NONE Filters NONE Steam 1 RUN: 3000eb96-f5dd-47a6-a0a3-039d44d285dc